bitfinex/quotes_ETHUSD_20240716
["timestamp","ask_amount","ask_price","bid_price","bid_amount"]
[1721172637605,2.88684,3464.0,3462.9,2.88773]
[1721172637901,0.146939,3464.2,3463.5,2.88724]
[1721172638392,0.146939,3464.2,3463.8,2.88693]
[1721172638589,0.146939,3464.2,3464.0,3.057]
[1721172639257,10.23545,3465.7,3463.9,0.594393]
[1721172639258,2.938395,3466.6,3464.3,5.94357]
[1721172639489,2.938395,3466.6,3464.2,2.4761]
[1721172639490,2.88475,3466.5,3465.3,2.88568]
[1721172639690,2.938315,3466.6,3465.1,3.057]
[1721172639926,2.88526,3465.9,3465.2,0.3057]
[1721172640063,0.2938315,3466.5,3464.6,2.88633]
[1721172640064,2.88534,3465.8,3464.6,2.88633]
[1721172640260,0.053645,3466.6,3465.2,2.88579]
[1721172640573,2.88525,3465.9,3464.6,2.88627]
[1721172640790,0.053645,3466.6,3464.6,2.88627]
[1721172640973,2.88502,3466.2,3464.7,6.059627]
[1721172641171,2.8853,3465.9,3464.7,8.945857]
[1721172641512,2.8856,3465.5,3464.7,5.771]
[1721172641660,2.88509,3466.1,3464.7,5.771]
[1721172641859,0.3474615,3466.6,3464.7,5.771]
[1721172641860,2.88566,3465.5,3464.7,5.771]
[1721172642581,2.88608,3465.0,3464.7,5.771]
[1721172642787,0.288608,3465.0,3464.7,5.771]
[1721172643081,2.88576,3465.3,3464.7,5.771]
[1721172643294,5.88541,3465.8,3464.7,5.771]
[1721172643495,2.88512,3466.1,3464.8,2.88615]
[1721172643702,2.88518,3466.0,3464.9,5.7722]
[1721172643863,0.053645,3466.6,3465.4,2.8856]
[1721172644064,0.053645,3466.6,3465.5,9.05976]
[1721172644366,2.88475,3466.5,3465.5,6.05976]
[1721172644568,2.88492,3466.3,3465.5,5.7712]
[1721172644806,2.88486,3466.4,3465.5,5.7712]
[1721172645024,2.88533,3465.8,3465.5,5.7712]
[1721172645478,2.88477,3466.5,3465.5,5.7712]
[1721172645479,5.771,3465.6,3465.5,5.7712]
[1721172645682,8.6565,3465.6,3465.5,5.7712]
[1721172646003,2.886,3465.0,3463.8,2.88697]
[1721172646167,2.88609,3464.9,3463.8,2.88697]
[1721172646369,2.88584,3465.2,3463.8,3.702047]
[1721172646564,2.88592,3465.1,3464.0,2.8868]
[1721172646768,2.88565,3465.5,3464.3,2.8865]
[1721172647270,2.88567,3465.4,3463.9,3.057]
[1721172647506,2.88592,3465.1,3464.1,2.88674]
[1721172648000,2.88575,3465.4,3464.2,2.88665]
[1721172648200,2.88575,3465.3,3464.2,2.88665]
[1721172648502,2.8861,3464.9,3464.1,0.6758827]
[1721172648891,2.88555,3465.6,3463.8,3.702037]
[1721172649082,0.005,3465.7,3463.8,3.702037]
[1721172649083,2.88618,3464.8,3463.8,3.702037]
[1721172649277,5.88558,3465.5,3463.8,3.702037]
[1721172649278,2.88626,3464.7,3463.8,0.815087]
[1721172649600,2.88633,3464.6,3463.8,0.815087]
[1721172650003,2.88642,3464.5,3463.8,0.815087]
[1721172650213,2.88642,3464.5,3463.6,2.3767]
[1721172650771,2.88633,3464.7,3463.6,5.26378]
[1721172651011,2.88603,3465.0,3463.7,2.88707]
[1721172651197,2.88615,3464.9,3463.7,2.88707]
[1721172651510,2.88597,3465.1,3463.8,0.526377]
[1721172651511,2.88618,3464.8,3463.8,0.526377]
[1721172651683,2.88583,3465.2,3463.9,2.94461282]
[1721172651888,2.88592,3465.1,3464.0,2.88676]
[1721172652110,2.88592,3465.1,3464.1,0.69349264]
[1721172652284,2.88609,3464.9,3464.2,5.7727]
[1721172652690,2.88592,3465.1,3464.2,5.7727]
[1721172653008,2.88647,3464.5,3464.2,5.7727]
[1721172653212,0.577273,3464.5,3464.2,5.7727]
[1721172653418,5.77316,3464.3,3464.2,5.7727]
[1721172653586,8.65974,3464.3,3464.2,5.7727]
[1721172653790,12.20974,3464.3,3464.2,5.7727]
[1721172653989,2.88746,3463.3,3462.2,5.35763]
[1721172654195,2.8876,3463.1,3462.2,2.4693]
[1721172654383,2.88777,3462.9,3462.2,2.4693]
[1721172654582,3.0,3463.9,3462.2,2.4693]
[1721172654890,2.88659,3464.3,3462.2,2.4693]
[1721172654891,2.88768,3463.0,3462.2,2.4693]
[1721172655219,2.88733,3463.4,3462.2,2.4693]
[1721172655678,5.8869,3464.0,3462.7,2.88786]
[1721172655878,2.88686,3464.0,3462.8,3.176606]
[1721172656112,2.88708,3463.7,3462.8,0.288786]
[1721172656288,2.88708,3463.7,3462.9,2.88775]
[1721172656610,2.88692,3463.9,3462.9,2.88775]
[1721172656817,2.88707,3463.8,3462.8,0.288786]
[1721172657015,2.88709,3463.7,3462.8,3.176606]
[1721172657406,2.88709,3463.7,3462.9,2.88773]
[1721172657610,2.88667,3464.2,3463.0,0.3176516]
[1721172657779,2.88634,3464.6,3463.4,2.88727]
[1721172657979,2.88642,3464.5,3463.4,2.88727]
[1721172658213,9.8096,3465.4,3463.5,2.9449687]
[1721172658424,2.88634,3464.6,3463.7,2.88706]
[1721172658607,2.8865,3464.4,3463.8,5.774]
[1721172659302,2.88642,3464.5,3463.8,5.774]
[1721172659615,2.88651,3464.4,3463.8,5.774]
[1721172659783,2.88633,3464.6,3463.8,5.774]
[1721172659979,2.88583,3465.2,3464.2,2.88661]
[1721172660189,2.88583,3465.2,3464.4,2.88643]
[1721172660388,2.88583,3465.2,3464.5,5.7728]
[1721172660588,2.88633,3464.6,3464.5,5.7728]
[1721172660812,5.77266,3464.6,3464.5,5.7728]
[1721172661122,6.349926,3464.6,3464.5,5.7728]
[1721172662017,12.236256,3464.6,3464.5,5.7728]
[1721172662532,12.786256,3464.6,3464.5,5.7728]
[1721172662821,15.672586,3464.6,3464.5,5.7728]
[1721172663123,2.8876,3463.1,3462.2,7.37]
[1721172663321,2.8876,3463.1,3462.1,2.88836]
[1721172663526,2.8876,3463.1,3461.9,5.37866]
[1721172663740,3.0,3463.8,3461.9,5.37866]
[1721172663741,2.88792,3462.7,3461.9,2.4901]
[1721172664031,2.888,3462.6,3461.9,2.4901]
[1721172664186,2.8881,3462.5,3461.9,2.4901]
[1721172664387,2.8883,3462.3,3461.4,2.88895]
[1721172664986,2.88834,3462.2,3461.2,5.26463]
[1721172665207,2.88842,3462.1,3461.2,5.26463]
[1721172665408,2.88842,3462.1,3461.2,2.3755]
[1721172666543,6.354106,3462.1,3460.8,2.8895]
[1721172666823,2.88834,3462.2,3461.0,2.88933]
[1721172667014,2.88842,3462.1,3461.2,2.88915]
[1721172667746,5.77684,3462.1,3460.7,7.37]
[1721172668354,2.88842,3462.1,3461.2,2.88916]
[1721172668700,5.88796,3462.7,3460.7,10.413]
[1721172668701,3.0,3462.7,3460.7,10.413]
[1721172669018,2.88842,3462.1,3461.2,2.88914]
[1721172669939,3.442,3465.1,3461.2,2.88914]
[1721172669940,2.88698,3463.9,3461.7,2.3855]
[1721172670102,3.442,3464.4,3461.7,2.3855]
[1721172670103,2.88811,3462.5,3461.7,2.3855]
[1721172670309,2.88831,3462.3,3461.3,2.88901]
[1721172670530,2.88834,3462.2,3461.2,2.8891]
[1721172670742,2.88842,3462.1,3461.2,2.8891]
[1721172670909,2.88842,3462.1,3461.0,2.3379]
[1721172670910,2.88842,3462.1,3461.0,5.22718]
[1721172671110,2.88842,3462.1,3461.1,2.88924]
[1721172671380,2.88842,3462.1,3461.0,2.3379]
[1721172671381,5.77684,3462.1,3461.0,2.3379]
[1721172671544,6.354516,3462.1,3460.7,2.88958]
[1721172672139,9.354516,3462.1,3460.7,2.88958]
[1721172672341,12.242936,3462.1,3460.4,2.88983]
[1721172672508,12.242936,3462.1,3460.3,2.3379]
[1721172672711,15.681356,3462.1,3460.2,2.88999]
[1721172672932,12.242936,3462.1,3460.3,2.8899]
[1721172673131,15.681356,3462.1,3460.1,2.89008]
[1721172673331,15.681356,3462.1,3459.9,2.89023]
[1721172673332,18.569776,3462.1,3462.0,8e-06]
[1721172673641,18.569776,3462.1,3459.7,2.3379]
[1721172673642,2.88985,3460.4,3459.7,2.3379]
[1721172673821,2.8896,3460.7,3459.8,0.522839]
[1721172674218,7.35,3461.3,3459.8,3.413109]
[1721172674219,2.88953,3460.8,3459.8,3.413109]
[1721172674446,2.88976,3460.5,3459.8,0.522839]
[1721172674741,2.88949,3460.9,3459.9,0.0577956]
[1721172675145,2.88968,3460.6,3459.9,0.0577956]
[1721172675343,2.88968,3460.6,3460.0,0.58088646]
[1721172675746,2.88976,3460.5,3460.0,0.58088646]
[1721172676650,2.8895,3460.8,3460.0,0.58088646]
[1721172676853,2.8895,3460.8,3460.1,0.05779279]
[1721172677047,2.88973,3460.6,3460.1,0.05779279]
[1721172677251,2.88973,3460.6,3460.0,0.58088646]
[1721172677965,2.8895,3460.8,3460.0,0.58088646]
[1721172678337,2.88972,3460.6,3460.0,0.58088646]
[1721172678535,2.88972,3460.6,3459.7,5.28610316]
[1721172678536,2.88972,3460.6,3459.7,5.22831]
[1721172678756,2.88976,3460.5,3459.7,2.3379]
[1721172678935,2.88989,3460.4,3459.7,2.3379]
[1721172679240,2.88993,3460.3,3459.4,2.89066]
[1721172679469,2.88993,3460.3,3459.3,2.89069]
[1721172679684,2.88975,3460.5,3459.5,2.89056]
[1721172679685,2.89,3460.2,3459.5,2.89056]
[1721172681078,2.89,3460.2,3459.4,0.289069]
[1721172681079,2.89,3460.2,3459.4,3.179719]
[1721172681251,2.89009,3460.1,3459.4,3.179719]
[1721172681891,2.89025,3459.9,3459.0,2.89092]
[1721172682037,2.89017,3460.0,3459.0,2.89099]
[1721172682438,3.0,3460.6,3458.6,0.30233428]
[1721172682692,7.35,3460.8,3458.6,0.30233428]
[1721172682693,2.89039,3459.8,3458.6,0.30233428]
[1721172682908,2.89094,3459.1,3458.6,0.30233428]
[1721172683089,7.35,3460.0,3458.1,5.384]
[1721172683297,12.44,3460.6,3459.2,2.89077]
[1721172683298,3.0,3460.6,3459.2,2.89077]
[1721172683610,7.35,3460.9,3459.3,0.289077]
[1721172683611,3.0,3460.8,3459.3,0.289077]
[1721172683927,2.89019,3460.0,3459.3,0.289077]
[1721172684108,2.89,3460.2,3459.3,3.179827]
[1721172684254,2.89,3460.2,3459.4,2.89066]
[1721172684798,2.89017,3460.0,3459.4,2.89066]
[1721172685101,2.89017,3460.0,3459.3,0.289077]
[1721172685251,2.89017,3460.0,3459.2,2.341]
[1721172685568,2.89017,3460.0,3458.4,2.89147]
[1721172685569,2.89056,3459.6,3458.4,2.89147]
[1721172685769,2.89081,3459.3,3458.4,2.89147]
[1721172685965,2.89081,3459.3,3458.6,2.89133]
[1721172686176,2.89025,3459.9,3458.4,2.89144]
[1721172686453,2.89025,3459.9,3458.3,2.491]
[1721172686454,3.0,3459.8,3458.3,2.491]
[1721172686657,3.0,3459.8,3458.3,5.38258]
[1721172686658,2.89106,3459.0,3458.3,5.38258]
[1721172686969,2.89085,3459.2,3458.4,2.89144]
[1721172687374,0.6004917,3459.7,3458.4,2.89144]
[1721172687375,2.89075,3459.3,3458.4,2.89144]
[1721172687695,2.89068,3459.4,3458.6,2.89132]
[1721172687855,3.4909417,3459.7,3458.5,2.89139]
[1721172688162,2.89025,3459.9,3459.1,2.89086]
[1721172688375,2.89057,3459.6,3458.8,2.89117]
[1721172688562,2.8902,3460.0,3459.1,2.89084]
[1721172688767,2.89027,3459.9,3459.1,2.89084]
[1721172688962,2.89059,3459.5,3458.7,2.89124]
[1721172689167,2.89059,3459.5,3458.7,3.2341879]
[1721172689403,2.89059,3459.5,3458.8,2.89117]
[1721172689967,3.0,3460.4,3458.7,3.2341879]
[1721172689968,2.89049,3459.7,3458.9,2.89106]
[1721172690168,2.8902,3460.0,3459.0,2.89099]
[1721172690366,2.8902,3460.0,3458.7,0.3429479]
[1721172690367,2.89034,3459.8,3459.2,2.8908]
[1721172690668,2.8903,3459.9,3459.2,2.8908]
[1721172690996,2.8903,3459.9,3459.1,0.289099]
[1721172691194,2.89036,3459.8,3459.1,0.289099]
[1721172691396,2.8905,3459.7,3458.7,0.3429479]
[1721172691616,2.89059,3459.5,3457.6,2.332]
[1721172691764,12.66666,3460.5,3457.6,2.332]
[1721172691765,2.89042,3459.8,3457.7,5.93506]
[1721172691969,2.89069,3459.4,3458.5,2.8914]
[1721172692370,2.89076,3459.3,3458.5,2.8914]
[1721172692570,2.89084,3459.2,3458.5,2.8914]
[1721172692813,2.88998,3460.3,3458.5,2.8914]
[1721172692814,2.8906,3459.5,3458.8,2.89114]
[1721172693104,2.89046,3459.7,3458.8,2.89114]
[1721172693291,2.89089,3459.2,3458.4,2.8915]
[1721172693712,2.89093,3459.1,3458.4,2.8915]
[1721172693895,2.89118,3458.8,3457.9,2.89184]
[1721172694117,2.89118,3458.8,3457.8,2.89197]
[1721172694322,2.89118,3458.8,3457.9,2.89191]
[1721172694323,2.89134,3458.6,3457.9,2.89191]
[1721172694530,2.89104,3459.0,3458.1,2.89171]
[1721172694685,2.89131,3458.7,3457.9,2.89185]
[1721172694894,2.89134,3458.6,3457.9,2.89185]
[1721172695205,2.89134,3458.6,3457.7,2.89207]
[1721172695387,2.89134,3458.6,3457.9,2.89185]
[1721172695582,2.89134,3458.6,3457.8,0.522407]
[1721172695824,2.89151,3458.4,3457.6,2.89217]
[1721172696131,2.89151,3458.4,3457.5,2.89222]
[1721172696132,2.89151,3458.4,3457.7,2.89208]
[1721172696333,2.89097,3459.1,3457.5,2.89222]
[1721172696629,2.89097,3459.1,3457.1,2.70720892]
[1721172696630,2.89236,3457.4,3457.1,0.30250892]
[1721172696840,2.89236,3457.4,3456.5,2.89308]
[1721172696841,0.289236,3457.3,3456.5,2.89308]
[1721172697039,2.8924,3457.4,3456.5,2.89308]
[1721172697204,5.78444,3457.6,3456.6,0.00976664]
[1721172697384,2.89226,3457.5,3456.6,0.00976664]
[1721172697589,2.8925,3457.3,3456.7,0.00147642]
[1721172697789,2.8925,3457.3,3456.5,2.89308]
[1721172698005,2.8925,3457.3,3456.6,0.00976664]
[1721172698432,2.8925,3457.3,3456.5,3.471713]
[1721172698433,2.89253,3457.2,3456.5,3.471713]
[1721172698595,2.89253,3457.2,3456.6,0.00976664]
[1721172698923,2.89266,3457.1,3456.7,0.00630004]
[1721172699140,2.89261,3457.1,3456.1,2.89339]
[1721172699440,2.89281,3456.9,3456.2,0.00102908]
[1721172699733,2.89286,3456.8,3456.2,0.00205853]
[1721172700034,2.8923,3457.5,3456.3,0.00518746]
[1721172700035,2.89273,3457.0,3456.3,0.00518746]
[1721172700256,2.89218,3457.6,3456.2,0.00539654]
[1721172700392,2.89226,3457.5,3456.4,2.89317]
[1721172700584,2.89253,3457.2,3456.4,3.55428225]
[1721172700818,2.89253,3457.2,3456.5,0.00087166]
[1721172701243,2.89249,3457.3,3456.4,0.66111225]
[1721172701565,2.89301,3456.6,3455.8,2.89366]
[1721172701900,2.89301,3456.6,3455.9,2.89358]
[1721172702389,2.8926,3457.1,3456.1,2.89342]
[1721172702745,2.89257,3457.2,3456.4,2.89318]
[1721172703239,2.89256,3457.2,3456.5,2.89309]
[1721172703442,2.89256,3457.2,3455.5,3.043]
[1721172703443,2.89223,3457.6,3456.4,2.4105]
[1721172703744,2.942426,3457.5,3455.3,8.34752]
[1721172704035,2.89273,3457.0,3456.1,2.89336]
[1721172704192,2.89276,3456.9,3456.1,2.89336]
[1721172705485,2.89276,3456.9,3455.9,2.89358]
[1721172706025,3.284,3457.3,3455.7,2.89371]
[1721172706243,2.8931,3456.5,3455.7,2.89371]
[1721172706526,2.8931,3456.5,3455.8,2.89367]
[1721172706952,2.8931,3456.5,3455.8,2.89368]
[1721172707118,2.8931,3456.5,3455.6,2.89379]
[1721172707313,2.8931,3456.5,3455.6,0.530429]
[1721172707519,2.89341,3456.2,3455.0,2.89435]
[1721172707717,2.8937,3455.8,3454.9,0.00976664]
[1721172707977,2.89351,3456.1,3455.3,2.89409]
[1721172708263,3.284,3456.7,3455.3,2.89404]
[1721172708264,2.89336,3456.2,3455.3,2.89404]
[1721172708443,2.89336,3456.2,3455.4,3.47284]
[1721172708751,6.284,3456.7,3455.5,2.89392]
[1721172708958,3.55,3456.6,3455.5,2.89392]
[1721172709131,2.89337,3456.2,3455.5,2.89393]
[1721172709318,2.89337,3456.2,3455.4,0.57883]
[1721172709521,2.89337,3456.2,3455.4,3.47284]
[1721172709958,2.89313,3456.5,3455.5,2.89393]
[1721172710265,2.89268,3457.0,3455.8,2.89363]
[1721172710266,2.89282,3456.9,3455.8,2.89363]
[1721172710409,3.284,3457.2,3455.8,2.89363]
[1721172710410,2.8931,3456.5,3455.8,2.89363]
[1721172710614,2.8931,3456.5,3455.5,0.636701]
[1721172710615,2.8931,3456.5,3455.7,2.89375]
[1721172710812,2.8931,3456.5,3455.7,3.2467951]
[1721172711614,2.89328,3456.3,3455.1,2.89424]
[1721172711868,2.89353,3456.0,3455.1,2.89424]
[1721172712029,3.284,3456.7,3454.9,2.4856]
[1721172712364,2.89369,3455.8,3454.9,2.89437]
[1721172712644,5.8371,3456.6,3455.3,2.89409]
[1721172712645,2.89337,3456.2,3455.3,2.89409]
[1721172712876,5.89344,3456.1,3455.3,2.89409]
[1721172713151,2.89394,3455.5,3454.4,3.34861918]
[1721172713313,2.89394,3455.5,3454.4,0.45382918]
[1721172713516,2.89394,3455.5,3454.5,2.89471]
[1721172713761,2.89378,3455.7,3454.5,2.89471]
[1721172713762,2.89402,3455.4,3454.5,2.89471]
[1721172713913,2.89402,3455.4,3454.0,0.146939]
[1721172713914,2.89402,3455.4,3454.2,2.89498]
[1721172714117,2.89428,3455.1,3454.0,0.146939]
[1721172714517,2.89402,3455.4,3454.4,2.89485]
[1721172714753,2.89426,3455.2,3454.3,2.89494]
[1721172714973,2.89411,3455.3,3454.4,2.89483]
[1721172715249,2.89419,3455.2,3454.4,3.473807]
[1721172716631,2.89437,3455.0,3454.0,3.042109]
[1721172716967,2.89437,3455.0,3454.1,2.8951]
[1721172717132,2.89445,3454.9,3454.0,0.146939]
[1721172717473,2.89429,3455.1,3454.0,0.146939]
[1721172717634,2.89439,3455.0,3454.2,2.89502]
[1721172718864,2.89385,3455.6,3454.5,2.89477]
[1721172719056,3.0,3455.7,3454.5,2.89477]
[1721172719057,2.8941,3455.3,3454.5,2.89477]
[1721172719252,2.89422,3455.2,3454.5,2.89477]
[1721172719966,2.89422,3455.2,3454.2,2.89502]
[1721172720141,2.89422,3455.2,3454.2,3.51915799]
[1721172720343,2.89411,3455.3,3454.2,0.62413799]
[1721172720547,2.89422,3455.2,3454.3,2.89493]
[1721172720935,2.89427,3455.1,3454.3,2.89493]
[1721172721243,2.89401,3455.5,3454.7,2.89458]
[1721172721573,3.0,3455.7,3454.5,2.89469]
[1721172721876,0.6767674,3455.7,3454.5,2.89469]
[1721172722077,2.89424,3455.2,3454.1,2.89508]
[1721172722377,3.5705474,3455.7,3454.0,3.042119]
[1721172722378,2.89446,3454.9,3454.0,3.042119]
[1721172722675,2.89446,3454.9,3454.1,2.8951]
[1721172722837,2.89446,3454.9,3454.2,0.5937219]
[1721172723034,2.89495,3454.3,3454.0,0.146939]
[1721172723772,13.79439,3455.0,3454.0,0.146939]
[1721172723773,2.89466,3454.7,3454.0,0.146939]
[1721172724081,2.89466,3454.7,3454.1,0.05789637]
[1721172724372,2.89483,3454.5,3454.0,0.146939]
[1721172724868,2.89501,3454.3,3454.0,0.146939]
[1721172725038,10.9,3455.0,3454.0,0.146939]
[1721172725238,2.89474,3454.6,3454.0,0.146939]
[1721172725434,3.0,3454.5,3454.0,0.7407059]
[1721172726440,3.0,3454.5,3454.0,0.146939]
[1721172726441,5.89477,3454.5,3454.0,0.146939]
[1721172726640,3.0,3454.5,3454.0,0.146939]
[1721172726999,2.89487,3454.4,3454.0,0.146939]
[1721172727851,2.89502,3454.3,3454.0,0.146939]
[1721172728690,2.89494,3454.3,3454.0,0.146939]
[1721172730276,2.89503,3454.2,3454.0,0.146939]
[1721172731902,5.8948,3454.5,3454.0,0.146939]
[1721172732793,3.0,3454.5,3454.0,0.146939]
[1721172732993,7.9,3455.0,3454.0,3.0878879]
[1721172732994,7.35,3455.0,3454.0,3.0878879]
[1721172733200,2.89419,3455.2,3454.4,2.89484]
[1721172733682,7.35,3455.7,3454.0,2.494139]
[1721172733683,2.89446,3454.9,3454.0,2.494139]
[1721172734300,2.89428,3455.1,3454.3,2.89494]
[1721172734502,3.0,3455.5,3454.8,2.89449]
[1721172734700,2.89374,3455.8,3454.8,2.89449]
[1721172735011,2.89383,3455.7,3454.9,0.578916]
[1721172735628,2.89392,3455.6,3454.1,2.89508]
[1721172735781,2.89392,3455.6,3454.0,2.494139]
[1721172735782,2.89441,3455.0,3454.0,2.494139]
[1721172736101,2.89461,3454.7,3454.0,3.042129]
[1721172736286,2.89461,3454.7,3454.0,0.146939]
[1721172736671,2.89469,3454.6,3454.0,0.146939]
[1721172737410,2.89486,3454.4,3454.0,0.146939]
[1721172737985,2.89504,3454.2,3454.0,0.146939]
[1721172738387,3.284,3455.3,3454.0,0.146939]
[1721172738388,7.35,3455.4,3454.3,2.89486]
[1721172738588,2.89418,3455.2,3454.4,2.89485]
[1721172739102,9.7276,3456.2,3454.8,2.89452]
[1721172739103,2.89386,3455.6,3454.8,2.89452]
[1721172739280,2.89419,3455.2,3454.3,2.89494]
[1721172739474,9.7276,3456.2,3454.0,3.042109]
[1721172739475,2.89446,3454.9,3454.0,3.042109]
[1721172739670,2.89446,3454.9,3454.1,2.8951]
[1721172740309,5.89391,3455.6,3454.0,0.146939]
[1721172740310,2.89464,3454.7,3454.0,0.146939]
[1721172740494,2.89471,3454.6,3454.0,0.146939]
[1721172740692,2.89486,3454.4,3454.0,0.146939]
[1721172741376,2.895,3454.3,3454.0,0.146939]
[1721172741571,2.89504,3454.2,3454.0,0.146939]
[1721172742081,2.89511,3454.1,3454.0,0.146939]
[1721172742492,5.79022,3454.1,3454.0,0.146939]
[1721172742786,6.34022,3454.1,3454.0,0.146939]
[1721172743476,2.89511,3454.1,3454.0,0.146939]
[1721172743680,2.89488,3454.4,3454.0,0.146939]
[1721172743976,5.89495,3454.3,3454.0,0.146939]
[1721172744183,2.89495,3454.3,3454.0,0.146939]
[1721172744386,3.0,3454.2,3454.0,0.146939]
[1721172744585,7.35,3454.8,3454.0,0.146939]
[1721172744786,2.89429,3455.1,3454.4,2.89485]
[1721172744998,2.89404,3455.4,3454.4,2.89485]
[1721172744999,2.89415,3455.3,3454.4,2.89485]
[1721172745240,2.89404,3455.4,3454.4,2.89485]
[1721172745450,2.89351,3456.0,3455.0,2.89428]
[1721172745652,7.35,3456.1,3455.1,0.34730513]
[1721172745782,6.17643,3457.3,3455.4,2.89396]
[1721172745783,2.89327,3456.3,3455.4,2.89396]
[1721172746289,7.35,3456.8,3455.3,2.89408]
[1721172746290,2.89311,3456.5,3455.3,2.89408]
[1721172746595,2.89332,3456.3,3455.5,2.89387]
[1721172747137,3.0,3456.2,3455.5,2.89387]
[1721172747314,3.0,3456.2,3455.1,0.289428]
[1721172747315,7.35,3456.8,3455.6,0.578795]
[1721172747639,2.89277,3456.9,3456.1,2.89343]
[1721172748033,2.89277,3456.9,3455.9,2.89359]
[1721172748189,2.89284,3456.8,3455.9,2.89359]
[1721172748523,2.8932,3456.4,3455.3,2.89403]
[1721172748887,2.8932,3456.4,3455.5,2.89393]
[1721172749102,2.8931,3456.5,3455.6,3.183223]
[1721172749651,2.89322,3456.4,3455.6,0.289393]
[1721172750143,2.89311,3456.5,3455.6,3.183183]
[1721172750320,3.0,3456.8,3455.9,2.89359]
[1721172750540,5.89295,3456.7,3455.9,3.5012723]
[1721172750736,5.8928,3456.9,3456.0,2.89351]
[1721172750913,0.55,3456.8,3455.9,3.5012523]
[1721172751119,2.89296,3456.7,3455.9,2.89357]
[1721172751339,2.89296,3456.7,3455.6,0.289393]
[1721172751340,3.0,3456.9,3456.0,2.89351]
[1721172751563,5.89276,3456.9,3455.9,2.89354]
[1721172751734,5.89276,3456.9,3456.0,2.89351]
[1721172751906,3.0,3456.9,3455.9,2.89353]
[1721172752112,7.35,3457.5,3456.2,2.89334]
[1721172752113,5.89251,3457.2,3456.2,2.89334]
[1721172752311,2.89276,3456.9,3456.0,2.89345]
[1721172752507,3.0,3456.8,3456.1,2.89343]
[1721172753521,3.0,3456.8,3456.2,2.89334]
[1721172754053,3.0,3456.8,3456.0,2.89347]
[1721172754276,3.0,3456.8,3456.1,2.89336]
[1721172754277,3.878537,3456.8,3456.1,2.89336]
[1721172754555,2.89277,3456.9,3456.1,2.89336]
[1721172754715,3.0,3456.8,3456.2,2.89331]
[1721172754910,2.89257,3457.2,3456.2,2.89331]
[1721172755151,3.0,3457.4,3455.7,2.89372]
[1721172755152,2.89259,3457.1,3455.7,2.89372]
[1721172755355,3.0,3457.0,3455.8,2.89366]
[1721172755665,7.35,3457.5,3455.6,0.0578583]
[1721172755666,7.35,3457.5,3456.5,2.89308]
[1721172755951,2.89191,3458.0,3457.0,2.89261]
[1721172756109,10.24174,3458.2,3457.0,2.89261]
[1721172756110,10.24174,3458.2,3457.2,2.8925]
[1721172756312,2.89174,3458.2,3457.2,2.8925]
[1721172756611,0.524074,3458.1,3457.2,2.8925]
[1721172756806,2.89168,3458.2,3457.3,2.8924]
[1721172757120,2.89185,3458.0,3457.3,2.8924]
[1721172758351,2.89168,3458.2,3457.3,2.8924]
[1721172758352,2.89179,3458.1,3457.3,2.8924]
[1721172758711,2.89161,3458.3,3457.4,2.89233]
[1721172759055,2.89142,3458.6,3457.0,2.258]
[1721172759283,2.89156,3458.4,3457.6,2.89209]
[1721172759416,2.89156,3458.4,3457.7,2.89206]
[1721172759869,2.89162,3458.3,3457.1,0.2258]
[1721172760010,2.89154,3458.4,3457.6,2.89214]
[1721172760214,2.89161,3458.3,3457.6,2.89214]
[1721172760758,2.89154,3458.4,3457.6,2.89214]
[1721172760957,5.89161,3458.3,3457.6,2.89214]
[1721172761115,5.89161,3458.3,3457.4,2.89228]
[1721172761315,5.89161,3458.3,3457.2,2.89248]
[1721172761316,2.89183,3458.1,3456.9,2.89268]
[1721172761642,2.89183,3458.1,3457.0,2.89268]
[1721172761643,2.89199,3457.9,3457.0,2.89268]
[1721172762063,2.89199,3457.9,3456.8,2.89284]
[1721172762064,2.89217,3457.7,3456.9,2.89273]
[1721172762268,2.89217,3457.7,3456.8,2.89284]
[1721172762269,2.89202,3457.8,3457.1,2.89257]
[1721172762432,3.0,3457.7,3456.4,2.3594]
[1721172762632,2.89228,3457.5,3456.6,2.89296]
[1721172762975,5.89217,3457.7,3456.8,2.89284]
[1721172763272,5.89217,3457.7,3456.8,2.89279]
[1721172763469,3.0,3457.7,3457.1,2.89257]
[1721172763676,2.89194,3457.9,3457.2,2.89249]
[1721172763878,2.89194,3457.9,3457.1,2.89257]
[1721172764192,3.0,3457.8,3457.1,2.89257]
[1721172764677,5.89202,3457.8,3457.1,2.89259]
[1721172764826,5.89202,3457.8,3456.9,5.78543]
[1721172765033,5.89202,3457.8,3456.9,2.8927]
[1721172765274,5.89202,3457.8,3457.0,2.89265]
[1721172765782,5.89202,3457.8,3457.1,2.89259]
[1721172765930,2.89202,3457.8,3457.2,2.89245]
[1721172766137,2.89192,3457.9,3457.2,2.89245]
[1721172766552,3.0,3457.8,3457.2,2.89245]
[1721172767269,5.89201,3457.8,3457.0,2.89264]
[1721172767574,3.0,3457.8,3457.2,2.89248]
[1721172767786,0.55,3458.3,3457.2,3.470992]
[1721172767986,0.55,3458.3,3457.6,2.89216]
[1721172767987,5.8916,3458.3,3457.6,2.89216]
[1721172768278,3.0,3458.3,3457.6,2.89216]
[1721172768448,2.89142,3458.5,3457.6,2.89216]
[1721172768648,2.89167,3458.3,3457.4,2.89233]